[Event "Nakhchivan Open 2022"]
[Site "Nakhchivan"]
[Date "2022.05.14"]
[Round "9.1"]
[White "Shahaliyev, Ismayil"]
[Black "Ahmadov, Fariz"]
[Result "1-0"]
[ECO "E05"]
[WhiteElo "2386"]
[BlackElo "2182"]
[Annotator "TA"]
[PlyCount "99"]
[EventDate "2022.05.08"]
[EventType "swiss"]
[EventCountry "AZE"]
[SourceTitle "playchess.com"]
[Source "ChessBase"]
[SourceQuality "1"]
[TimeControl "5400+30"]

{[%evp 14,99,46,32,44,47,39,46,42,50,64,67,133,133,131,44,54,35,65,65,59,16,16,24,116,47,38,29,106,99,159,145,174,123,112,117,117,117,215,218,217,212,206,207,224,210,233,228,239,225,235,240,247,246,329,332,332,332,332,332,332,332,325,299,305,296,382,370,356,338,401,401,575,489,807,788,778,754,710,691,1237,1186,5197,5006,12727,10449,5926,2124]} 1. d4 {[%emt 0:00:04]} Nf6 {[%emt 0:00:11]} 2. c4 {[%emt 0:00:07]} e6 {[%emt 0:00:02]} 3. g3 {[%emt 0:00:08]} d5 {[%emt 0:00:07]} 4. Nf3 {[%emt 0:00:07]} dxc4 {[%emt 0:01:44]} 5. Bg2 {[%emt 0:00:26]} Be7 {[%emt 0:04:13]} 6. O-O {[%emt 0:00:26]} O-O {[%emt 0:00:03]} 7. Qc2 {[%emt 0:00:06]} Nc6 {[%emt 0:09:26]} 8. Qxc4 {[%emt 0:01:16]} Qd5 {[%emt 0:01:27] E05: Open Catalan: 5 Nf3 Be7.} 9. Qa4 {[%emt 0:01:25]} Qh5 {[%emt 0:04:00]} 10. Nc3 {[%emt 0:00:57][%cal Bb1c3,Bc3a4,Ba4c5][%mdl 32] [#] Against b5} Rd8 $146 {[%emt 0:04:12] White is slightly better.} ({Predecessor:} 10... Bd7 11. Qd1 Bd6 12. Re1 e5 13. d5 Nd8 14. Nd2 c6 15. e4 Bg4 16. f3 Bc5+ {½-½ (59) Dutra,A (2418)-Tsang,H (2394) ICCF email 2016}) 11. Rd1 {[%emt 0:03:43]} Rb8 {[%emt 0:06:03]} 12. Bf4 {[%emt 0:16:29]} b5 {[%emt 0:08:44]} (12... Bd6 $1 $14) 13. Qb3 $16 {[%emt 0:01:03]} Bd6 {[%emt 0:05:47] [#]} 14. Bg5 {[%emt 0:07:18]} (14. Ne5 $1 $16 {[%cal Re5c6]} Na5 15. Qc2) 14... b4 $14 {[%emt 0:11:05]} 15. Na4 {[%emt 0:06:22]} Na5 {[%emt 0:06:59]} 16. Qd3 {[%emt 0:05:19]} Bd7 {[%emt 0:06:24]} 17. Nc5 {[%emt 0:06:14]} Bb5 {[%emt 0:04:31]} 18. Qc2 {[%emt 0:00:42]} Qg6 {[%emt 0:04:10]} (18... Bxc5 $11 19. dxc5 Nc6) 19. Qxg6 {[%emt 0:05:18]} (19. e4 $16) 19... hxg6 {[%emt 0:00:05]} 20. Nd3 {[%emt 0:02:42]} Bxd3 {[%emt 0:05:29]} (20... b3 $11) 21. Rxd3 $16 {[%emt 0:00:10]} c5 {[%emt 0:00:07]} ({Black should try} 21... b3) 22. dxc5 {[%emt 0:03:49]} Bxc5 {[%emt 0:00:06]} 23. Rxd8+ {[%emt 0:00:14]} (23. Bf4 $18) 23... Rxd8 {[%emt 0:00:04]} 24. Rc1 {[%emt 0:00:10]} Bb6 {[%emt 0:09:25]} 25. b3 {[%emt 0:03:52]} Rd7 {[%emt 0:02:03]} (25... Nb7 $16 {might work better.}) 26. Ne5 $18 {[%emt 0:03:05]} Rc7 {[%emt 0:00:30]} 27. Rxc7 {[%emt 0:00:28]} Bxc7 {[%emt 0:00:04]} 28. Nd3 {[%emt 0:00:05]} Nd7 {[%emt 0:05:01]} 29. Nxb4 {[%emt 0:00:27]} Kf8 {[%emt 0:00:38]} 30. Bd2 {[%emt 0:03:22]} Bb6 {[%emt 0:01:24]} 31. Nd3 {[%emt 0:00:33]} Ke7 {[%emt 0:00:20]} 32. Bb4+ {[%emt 0:01:38] A strong pair of Bishops.} Kd8 {[%emt 0:00:15]} 33. Bc3 {[%emt 0:00:16]} Kc7 {[%emt 0:01:26]} 34. Bxg7 {[%emt 0:00:21]} Nc6 {[%emt 0:00:08]} 35. Bxc6 {[%emt 0:08:45]} Kxc6 {[%emt 0:00:04]} 36. Ne5+ {[%emt 0:00:19]} Nxe5 {[%emt 0:00:10]} 37. Bxe5 {[%emt 0:00:02][%mdl 4096] Endgame KB-KB} Kd5 {[%emt 0:00:06]} 38. Bc3 {[%emt 0:00:19]} e5 {[%emt 0:00:03]} 39. g4 {[%emt 0:00:44]} g5 {[%emt 0:01:07]} 40. Kg2 {[%emt 0:00:22]} Ke4 {[%emt 0:00:22]} 41. Kg3 {[%emt 0:00:45]} f6 {[%emt 0:00:56]} 42. Bb4 {[%emt 0:00:55] [#] And now Be7 would win.} Bd8 {[%emt 0:00:07] Prevents Be7.} (42... Kd5 $142 43. e3 a5) 43. Bc5 {[%emt 0:01:24] White is clearly winning.} a5 {[%emt 0:00:04]} (43... a6 $142 44. h4 Kd5) 44. Ba7 {[%emt 0:00:46]} Kd5 {[%emt 0:01:35]} 45. h4 {[%emt 0:01:40]} gxh4+ {[%emt 0:00:19]} 46. Kxh4 {[%emt 0:00:02]} f5+ {[%emt 0:01:09]} 47. g5 {[%emt 0:00:36]} a4 {[%emt 0:00:00]} 48. bxa4 {[%emt 0:00:16]} e4 {[%emt 0:00:54]} 49. Kh5 {[%emt 0:00:17] Threatening mate with g6.} f4 {[%emt 0:00:14]} 50. Kh6 {[%emt 0:01:02] Weighted Error Value: White=0.11 (very precise) /Black=0.35} 1-0

[Event "Nakhchivan Open 2022"]
[Site "Nakhchivan"]
[Date "2022.05.14"]
[Round "9.2"]
[White "Gasimov, Parviz"]
[Black "Rasulov, Vugar"]
[Result "0-1"]
[ECO "B52"]
[WhiteElo "2331"]
[BlackElo "2445"]
[Annotator "TA"]
[PlyCount "68"]
[EventDate "2022.05.08"]
[EventType "swiss"]
[EventCountry "AZE"]
[SourceTitle "playchess.com"]
[Source "ChessBase"]
[SourceQuality "1"]
[TimeControl "5400+30"]

{[%evp 19,68,14,22,12,25,0,-6,-6,-4,-24,-21,-110,-53,-60,-44,-43,-48,-306,-285,-323,-318,-309,-320,-351,-341,-545,-524,-595,-391,-451,-447,-747,-522,-497,-492,-1205,-1204,-1204,-1204,-1170,-1160,-1160,-1160,-962,-482,-29985,-29986,-29987,-29988,-29998,-29999]} 1. e4 {[%emt 0:00:04]} c5 {[%emt 0:03:30]} 2. Nf3 {[%emt 0:00:06]} d6 {[%emt 0:01:30]} 3. Bb5+ {[%emt 0:01:12]} Bd7 {[%emt 0:00:19]} 4. Bxd7+ {[%emt 0:00:06]} Qxd7 {[%emt 0:00:06]} 5. O-O {[%emt 0:00:28]} Nf6 {[%emt 0:00:32]} 6. Qe2 {[%emt 0:00:54]} Nc6 {[%emt 0:00:15]} 7. c3 {[%emt 0:01:16]} e6 {[%emt 0:00:06]} 8. d4 {[%emt 0:00:05]} cxd4 {[%emt 0:00:06]} 9. cxd4 {[%emt 0:00:03]} d5 {[%emt 0:00:12]} 10. e5 {[%emt 0:00:06]} Ne4 {[%emt 0:01:04]} 11. Be3 {[%emt 0:00:13] 11.Nbd2 is the hot move. B52: Sicilian: Moscow Variation with 3...Bd7.} f5 {[%emt 0:00:32]} 12. Rd1 {[%emt 0:19:00]} Qf7 {[%emt 0:02:16] [#]} 13. Ne1 $146 {[%emt 0:04:23] The position is equal.} ({Predecessor:} 13. Nc3 Be7 14. Qb5 Rb8 15. Ne2 a6 16. Qd3 O-O 17. Ne1 Na5 18. b3 h6 19. f3 {½-½ (29) Rublevsky,S (2687)-Ivanchuk,V (2731) Foros 2006}) 13... f4 {[%emt 0:23:37]} 14. Bc1 {[%emt 0:11:50]} Rc8 $1 {[%emt 0:00:17][%cal Oc6d4] Threatening ...Nxd4!} 15. Qb5 {[%emt 0:09:55]} (15. Nc3 $11) 15... a6 $17 {[%emt 0:02:51] Black is more active.} 16. Qa4 {[%emt 0:04:02]} Be7 {[%emt 0:00:22] Hoping for ...Bh4.} (16... Bb4 $5 {[%cal Rb4e1]} 17. Bd2 (17. Nd3 O-O $17) 17... Be7 $15) 17. f3 {[%emt 0:03:25]} O-O {[%emt 0:00:03]} 18. Na3 {[%emt 0:14:52][%mdl 8192] [#] White does not recover from this.} ({White must play} 18. Nc3 $1 $15 Nxc3 19. bxc3) 18... Bh4 $1 $19 {[%emt 0:05:13]} 19. fxe4 {[%emt 0:03:40]} dxe4 {[%emt 0:00:43]} 20. d5 {[%emt 0:11:05]} exd5 {[%emt 0:00:19]} 21. Qb3 {[%emt 0:03:50]} Bxe1 {[%emt 0:01:54]} ({Not} 21... Nxe5 22. Rxd5 Rce8 23. Nec2 $19) 22. e6 {[%emt 0:03:00] [#]} (22. Rxe1 $142 f3 23. Be3) 22... Qxe6 $1 {[%emt 0:00:30]} 23. Rxe1 {[%emt 0:00:01]} (23. Qxd5 Qxd5) 23... f3 {[%emt 0:03:45] ( -> ...f2+)} 24. Be3 {[%emt 0:01:39]} Kh8 {[%emt 0:00:38]} ({Weaker is} 24... fxg2 25. Re2 $17) 25. Bf2 {[%emt 0:05:08]} (25. gxf3 $142 exf3 26. Kh1) 25... Qg4 {[%emt 0:01:50][%csl Gf3][%cal Rg4g2]} 26. Bg3 {[%emt 0:00:12]} Nd4 {[%emt 0:00:50]} 27. Qxd5 {[%emt 0:00:50]} (27. Qe3 $142 Nc2 28. Nxc2 Rxc2 29. Kh1 fxg2+ 30. Kg1) 27... f2+ {[%emt 0:00:27]} 28. Bxf2 {[%emt 0:00:14]} Nf3+ $1 {[%emt 0:00:05][%mdl 64] Deflection, Double Attack} 29. Kf1 {[%emt 0:01:20]} Nxh2+ {[%emt 0:00:17]} 30. Kg1 {[%emt 0:00:03]} Nf3+ {[%emt 0:00:05]} 31. Kf1 {[%emt 0:00:03]} Rcd8 {[%emt 0:01:02]} 32. Qc5 {[%emt 0:00:52]} (32. Rxe4 $19 Nh2+ 33. Kg1 Rxd5 34. Rxg4 Nxg4 35. Be1) 32... Nh4 {[%emt 0:02:32] Black mates.} 33. g3 {[%emt 0:01:39]} Qxg3 {[%emt 0:00:28]} 34. Nc4 {[%emt 0:01:13]} Qh3+ {[%emt 0:00:21] Weighted Error Value: White=0.93/Black=0.39} 0-1

[Event "Nakhchivan Open 2022"]
[Site "Nakhchivan"]
[Date "2022.05.14"]
[Round "9.3"]
[White "Lorparizangeneh, Shahin"]
[Black "Asgari, Morteza"]
[Result "1/2-1/2"]
[ECO "D02"]
[WhiteElo "2502"]
[BlackElo "2244"]
[Annotator "TA"]
[PlyCount "61"]
[EventDate "2022.05.08"]
[EventType "swiss"]
[EventCountry "AZE"]
[SourceTitle "playchess.com"]
[Source "ChessBase"]
[SourceQuality "1"]
[TimeControl "5400+30"]

{[%evp 9,61,8,8,3,0,-33,11,6,23,0,0,-3,0,0,41,30,41,37,37,31,29,25,22,35,43,15,2,9,9,17,19,12,64,66,51,53,52,40,41,0,-3,0,0,0,0,-15,0,-18,0,0,0,-22,0,-2]} 1. d4 {[%emt 0:00:05]} d5 {[%emt 0:00:08]} 2. Nf3 {[%emt 0:01:31]} Nf6 {[%emt 0:00:31]} 3. c3 {[%emt 0:00:25]} c6 {[%emt 0:00:51]} 4. Bf4 {[%emt 0:00:48]} Bf5 {[%emt 0:00:22]} 5. e3 {[%emt 0:02:37]} e6 {[%emt 0:00:36]} 6. Be2 {[%emt 0:08:52] D02: 1 d4 d5 2 Nf3 sidelines, including 2...Nf6 3 g3 and 2...Nf6 3 Bf4.} Nbd7 {[%emt 0:01:57]} 7. O-O {[%emt 0:00:56]} h6 {[%emt 0:00:24]} 8. h3 {[%emt 0:00:50]} Qb6 {[%emt 0:01:43]} 9. Qc1 {[%emt 0:03:33]} Be7 {[%emt 0:03:07] [#]} 10. Bh2 $146 {[%emt 0:02:32]} ({Predecessor:} 10. Re1 O-O 11. Bf1 c5 12. Nbd2 Rac8 13. Ne5 Rfd8 14. Nxd7 Rxd7 15. Nb3 a5 16. Nxc5 Bxc5 17. dxc5 Qxc5 {0-1 (48) Wahedi,A (2246)-Grabarczyk,M (2485) Germany 2006}) 10... Bh7 {[%emt 0:00:45]} 11. c4 {[%emt 0:00:42]} dxc4 {[%emt 0:01:33]} 12. Nbd2 {[%emt 0:01:25]} O-O {[%emt 0:13:30]} 13. Nxc4 {[%emt 0:01:51]} Qd8 {[%emt 0:05:45]} 14. Rd1 {[%emt 0:04:54]} a5 {[%emt 0:05:14]} 15. Nfe5 {[%emt 0:03:40]} Nb6 {[%emt 0:02:53]} 16. b3 {[%emt 0:15:58]} a4 {[%emt 0:03:59]} 17. Nxb6 {[%emt 0:04:40]} Qxb6 {[%emt 0:00:11]} 18. Nc4 {[%emt 0:01:43]} Qb4 {[%emt 0:10:42]} 19. a3 {[%emt 0:06:42]} Qxb3 {[%emt 0:00:21]} 20. Rd2 $1 {[%emt 0:00:04][%cal Bd1d2,Bd2b2,Bb2b7][%mdl 32] [#] Rb2 is the strong threat.} Nd5 {[%emt 0:00:55]} ({Black should try} 20... b5 $11 21. Nb6 Ra6) 21. Rb2 $14 {[%emt 0:01:42]} Qc3 {[%emt 0:01:18] Hoping for ...Qxc1+.} (21... Nc3 $2 22. Bf1 Qd1 23. Qxd1 $18) 22. Rxb7 {[%emt 0:01:03] aiming for Qf1.} Qxc1+ {[%emt 0:05:01]} 23. Rxc1 {[%emt 0:00:03]} c5 {[%emt 0:00:16]} 24. Be5 {[%emt 0:29:44]} cxd4 {[%emt 0:01:26] The position is equal.} 25. Bxd4 {[%emt 0:00:04]} Rfb8 {[%emt 0:04:10]} 26. Rxb8+ {[%emt 0:04:11]} Rxb8 {[%emt 0:00:18]} 27. Ra1 {[%emt 0:00:50]} Bc2 {[%emt 0:02:24]} 28. Na5 {[%emt 0:00:03]} Bd6 {[%emt 0:03:32]} 29. Nc4 {[%emt 0:00:51] Against e5} Be7 {[%emt 0:00:22]} 30. Na5 {[%emt 0:00:05]} Bd6 {[%emt 0:00:14]} 31. Nc4 {[%emt 0:00:28] Prevents e5.  Weighted Error Value: White=0.07 (flawless) /Black=0.10 (very precise)} 1/2-1/2

[Event "Nakhchivan Open 2022"]
[Site "Nakhchivan"]
[Date "2022.05.14"]
[Round "9.4"]
[White "Azadaliyev, Jahandar"]
[Black "Gurbanov, Ismayil"]
[Result "1/2-1/2"]
[ECO "A68"]
[WhiteElo "2088"]
[BlackElo "2032"]
[Annotator "TA"]
[PlyCount "79"]
[EventDate "2022.05.08"]
[EventType "swiss"]
[EventCountry "AZE"]
[SourceTitle "playchess.com"]
[Source "ChessBase"]
[SourceQuality "1"]
[TimeControl "5400+30"]

{[%evp 21,79,0,0,0,0,-18,86,76,89,75,193,173,182,131,97,48,186,175,162,-12,0,0,0,0,37,24,20,23,631,625,676,654,616,0,0,0,0,0,0,0,0,0,0,0,0,0,0,0,0,0,0,0,0,0,0,0,0,0,0,0]} 1. d4 {[%emt 0:00:03]} Nf6 {[%emt 0:00:06]} 2. c4 {[%emt 0:00:08]} c5 {[%emt 0:01:09]} 3. d5 {[%emt 0:00:30]} e6 {[%emt 0:00:07]} 4. Nc3 {[%emt 0:00:14]} exd5 {[%emt 0:00:04]} 5. cxd5 {[%emt 0:00:24]} d6 {[%emt 0:00:01]} 6. e4 {[%emt 0:01:03]} g6 {[%emt 0:00:11]} 7. f4 {[%emt 0:04:17]} Bg7 {[%emt 0:00:57]} 8. Nf3 {[%emt 0:00:20]} O-O {[%emt 0:00:04]} 9. Be2 {[%emt 0:00:17]} b5 {[%emt 0:00:04]} 10. e5 {[%emt 0:02:23]} dxe5 {[%emt 0:01:10]} 11. fxe5 {[%emt 0:01:37]} Ng4 {[%emt 0:00:24]} 12. Bxb5 {[%emt 0:09:50] A68: Modern Benoni: Four Pawns Attack without 9...Re8.} Nxe5 {[%emt 0:03:16]} 13. O-O {[%emt 0:00:59]} Qb6 {[%emt 0:38:29]} (13... Bg4 $11) 14. Nxe5 $16 {[%emt 0:12:28] White is better.} Bxe5 {[%emt 0:00:05]} 15. Bh6 $1 {[%emt 0:03:50]} Bg7 {[%emt 0:31:23] [#]} (15... a6 $16 {was necessary.}) 16. Qd2 $146 {[%emt 0:01:30] Threatens to win with Rae1.} ({Predecessor:} 16. Bxg7 Kxg7 17. Qf3 Bf5 18. d6 Na6 19. g4 Be6 20. Bc6 Rad8 21. Qf6+ Kg8 22. Nd5 Bxd5 23. Bxd5 Rd7 24. Be6 Rb7 25. d7 {1-0 (25) Alexandrova,O (2430)-Kulicov,O (2420) Alushta 2002}) 16... Ba6 {[%emt 0:02:14]} 17. Bxa6 {[%emt 0:06:28]} (17. Bxg7 $18 Kxg7 18. a4) 17... Nxa6 {[%emt 0:00:15]} 18. Rae1 {[%emt 0:00:52] White is more active.} ({White should play} 18. Bxg7 $16 Kxg7 19. d6) 18... Rae8 {[%emt 0:02:34]} (18... Bd4+ $1 $14 19. Kh1 Rfe8) 19. Rxe8 $18 {[%emt 0:03:06]} Rxe8 {[%emt 0:00:27]} 20. Qf4 {[%emt 0:00:22]} (20. Bxg7 $18 Kxg7 21. d6) 20... f5 {[%emt 0:01:51]} 21. Bxg7 {[%emt 0:02:08]} Kxg7 {[%emt 0:00:02]} 22. d6 {[%emt 0:02:07] Rd1 is the strong threat.} Nb8 {[%emt 0:07:50]} (22... Qxb2 $2 23. d7 Qb8 24. dxe8=B $18) 23. Rd1 {[%emt 0:10:25] Black must now prevent d7.} Nd7 {[%emt 0:00:35]} 24. Qa4 {[%emt 0:03:08]} Nf6 {[%emt 0:00:59][%mdl 8192]} (24... Qb7 $11) 25. Nd5 {[%emt 0:03:02]} Qxb2 {[%emt 0:01:12]} 26. Nxf6 {[%emt 0:06:12]} Re2 {[%emt 0:00:02] [#]} 27. Qd7+ $2 {[%emt 0:01:18]} ({Weaker is} 27. Ne8+ Kh8 28. Qh4 (28. Qc6 Qc3 $11) 28... Rd2 $16) ({White has to play} 27. Qh4 $1 $18 Qc2 28. Rf1 (28. Re1 Qd2 $14)) 27... Kxf6 $11 {[%emt 0:00:17][%mdl 4096] Endgame KQR-KQR. The position is equal.} 28. Qc6 {[%emt 0:00:18]} (28. Qxh7 $2 Rxg2+ 29. Kh1 Qe2 $17) 28... Rd2 $1 {[%emt 0:04:27][%cal Rd2d1]} (28... Qb6 29. Qxb6 axb6 30. d7 Re7 31. d8=Q Kf7 32. Qh8 Ke6 33. Qf8) 29. d7+ {[%emt 0:06:29]} Ke7 {[%emt 0:02:41][%cal Rd2d1]} 30. Qxc5+ {[%emt 0:08:30]} Kxd7 $1 {[%emt 0:00:03][%cal Rd2d1]} 31. Qxa7+ {[%emt 0:00:12]} Kd6 {[%emt 0:00:43][%cal Rd2d1]} 32. Qa6+ {[%emt 0:00:19]} Kd7 {[%emt 0:00:02]} 33. Qa4+ {[%emt 0:00:19]} Kc8 {[%emt 0:01:33]} 34. Qc6+ {[%emt 0:01:57]} Kb8 {[%emt 0:00:28][%cal Rd2d1]} 35. Re1 {[%emt 0:03:33] Threatening mate with Re8+. Really sharp!} Qd4+ $1 {[%emt 0:00:44]} 36. Kh1 {[%emt 0:00:06]} Rd1 {[%emt 0:00:09][%cal Rd1e1]} (36... Qe4 $2 37. Qb6+ Kc8 38. Rxe4 $18) 37. Qb5+ {[%emt 0:00:17]} Ka7 {[%emt 0:00:33]} 38. Qa5+ {[%emt 0:00:13]} Kb7 {[%emt 0:00:03]} 39. Qb5+ {[%emt 0:00:38]} Ka7 {[%emt 0:00:01]} 40. Qa5+ {Weighted Error Value: White=0.30/Black=0.49} 1/2-1/2

[Event "Nakhchivan Open 2022"]
[Site "Nakhchivan"]
[Date "2022.05.14"]
[Round "9.5"]
[White "Haznedaroglu, Kivanc"]
[Black "Khaledi, Omid"]
[Result "1-0"]
[ECO "A45"]
[WhiteElo "2425"]
[BlackElo "2025"]
[Annotator "TA"]
[PlyCount "145"]
[EventDate "2022.05.08"]
[EventType "swiss"]
[EventCountry "AZE"]
[SourceTitle "playchess.com"]
[Source "ChessBase"]
[SourceQuality "1"]
[TimeControl "5400+30"]

{[%evp 9,145,-18,-12,-13,70,72,74,59,73,22,86,64,88,83,97,83,108,110,126,86,98,97,142,97,110,107,103,99,139,133,143,131,134,124,127,0,118,158,175,153,221,150,148,31,36,35,46,31,44,0,23,11,343,108,162,109,152,152,122,70,75,77,136,133,140,140,132,135,149,140,141,137,120,124,138,145,157,150,129,112,150,0,0,0,0,0,0,0,0,0,0,0,0,0,77,72,122,127,115,70,84,47,47,0,0,0,0,0,0,0,0,0,0,0,91,93,92,78,79,80,80,80,73,96,723,1281,1297,1256,1099,735,731,1018,894,655,4577,4570,767,745]} 1. d4 {[%emt 0:01:39]} Nf6 {[%emt 0:00:13]} 2. Bg5 {[%emt 0:00:53]} Ne4 {[%emt 0:00:32]} 3. h4 {[%emt 0:00:06]} c5 {[%emt 0:01:59]} 4. d5 {[%emt 0:00:02]} Qb6 {[%emt 0:02:50]} 5. Nd2 {[%emt 0:00:01]} h6 {[%emt 0:11:03]} 6. Bf4 {[%emt 0:10:14] [#] A45: Trompowsky Attack.} Nf6 {[%emt 0:11:21]} (6... Qxb2 $1 $11 7. Nxe4 Qb4+ 8. Qd2 Qxe4) 7. e4 $14 {[%emt 0:10:08]} d6 {[%emt 0:17:38]} 8. Nc4 {[%emt 0:02:31] White is better.} Qd8 {[%emt 0:00:27]} 9. a4 {[%emt 0:00:09]} (9. Nf3 $16) 9... g6 {[%emt 0:02:18] [#]} (9... e5 $11 10. dxe6 Bxe6) 10. f3 $146 {[%emt 0:03:23]} ({Predecessor:} 10. Qd2 Bg7 11. Bd3 Na6 12. c3 Nc7 13. Ne2 h5 14. f3 O-O 15. O-O-O Bd7 16. Rdg1 {0-1 (43) Kumala,A (2197)-Szadkowski,K (2277) Jastrzebia Gora 2018}) 10... Bg7 {[%emt 0:10:23]} 11. Qd2 {[%emt 0:00:15]} b6 {[%emt 0:08:02]} 12. Ne2 {[%emt 0:00:52]} Nbd7 {[%emt 0:04:00]} 13. g4 {[%emt 0:08:58]} a6 {[%emt 0:01:41]} 14. Ng3 {[%emt 0:03:17]} Kf8 {[%emt 0:05:45]} 15. Be2 {[%emt 0:02:58]} Ne8 {[%emt 0:02:56]} 16. Kf2 {[%emt 0:02:06]} Rb8 {[%emt 0:02:33]} 17. Kg2 {[%emt 0:01:37]} Qc7 {[%emt 0:01:32]} 18. c3 {[%emt 0:01:10]} Kg8 {[%emt 0:05:57]} 19. Be3 {[%emt 0:01:24]} b5 {[%emt 0:01:15]} 20. axb5 {[%emt 0:00:17]} axb5 {[%emt 0:00:00]} 21. Na5 {[%emt 0:01:17]} Ne5 {[%emt 0:00:48] Against Nc6} 22. g5 {[%emt 0:10:02]} ({White should play} 22. b4 $1 $16) 22... h5 {[%emt 0:02:28]} (22... hxg5 $11 23. Bxg5 Ra8 24. Bxb5 (24. Nc6 Rxa1 25. Nxe7+ Kh7 $14) 24... Rxa5 25. Rxa5 (25. Bxe8 Rxa1 26. Rxa1 f6 $11) 25... Qxa5 26. Bxe8 Kf8) 23. f4 $16 {[%emt 0:00:07][%cal Bf3f4,Bf4f5][%mdl 32]} Ng4 {[%emt 0:00:14]} 24. Nc6 {[%emt 0:00:12]} Rb7 {[%emt 0:00:24]} (24... Rb6 $16 25. Ra8 Rxc6) 25. f5 {[%emt 0:00:31]} Ne5 {[%emt 0:00:28]} 26. Bf4 {[%emt 0:03:41] 0x0.0008426e0907dp-1022s more active pieces.} (26. Ra6 $16) 26... Nxc6 $14 {[%emt 0:00:29]} 27. dxc6 {[%emt 0:00:02]} Qxc6 {[%emt 0:00:17]} 28. Bf3 {[%emt 0:00:01][%cal Oe4e5]} Be5 {[%emt 0:01:52]} 29. Ra8 {[%emt 0:01:45]} Kg7 {[%emt 0:00:44]} 30. Rd1 {[%emt 0:01:53]} Rb6 $2 {[%emt 0:01:24][%mdl 8192]} (30... Nc7 $11 31. Raa1 (31. Bxe5+ dxe5 32. Raa1 Rf8 $11) 31... Rf8) 31. Ra7 $2 {[%emt 0:02:22]} (31. Bxe5+ $18 dxe5 32. Qd8 Qxa8 33. Qxb6) 31... Rb7 {[%emt 0:00:17]} (31... Nc7 $16 {was necessary.}) 32. Rxb7 {[%emt 0:00:47]} (32. Bxe5+ $18 dxe5 33. Rxb7 Qxb7 34. Qf2) 32... Qxb7 {[%emt 0:00:33]} 33. Bxe5+ {[%emt 0:00:58]} dxe5 {[%emt 0:00:02]} 34. Qd5 {[%emt 0:00:43]} (34. Qf2 $16) 34... Qc7 $1 {[%emt 0:01:25]} ({Weaker is} 34... Qxd5 35. Rxd5 f6 36. Rxc5 $16) 35. b4 {[%emt 0:00:20]} Bb7 {[%emt 0:02:10]} ({Better is} 35... cxb4 36. cxb4 f6) 36. Qxc5 $16 {[%emt 0:00:15]} Qxc5 {[%emt 0:00:03]} 37. bxc5 {[%emt 0:00:05] Strongly threatening Rd7.} Bc6 {[%emt 0:00:15] Prevents Rd7.} 38. Ra1 {[%emt 0:00:06]} Nc7 {[%emt 0:00:21] Inhibits Ra6.} 39. Ra7 {[%emt 0:00:01]} Rc8 {[%emt 0:00:57]} 40. Kf2 $1 {[%emt 0:00:17]} Kf8 {[%emt 0:01:42]} 41. Bg2 {[%emt 0:02:22]} Ke8 {[%emt 0:00:57] [#]} 42. Bh3 $1 {[%emt 0:01:44] Threatens to win with fxg6.} e6 {[%emt 0:00:09]} 43. fxe6 {[%emt 0:01:02]} fxe6 {[%emt 0:00:01]} 44. Ke3 {[%emt 0:02:26]} Kd8 {[%emt 0:00:21] [#]} 45. Ne2 {[%emt 0:00:10]} ({White must play} 45. Nf1 $1 $16 {[%cal Rf1d2]}) 45... b4 $11 {[%emt 0:00:27]} 46. Ra1 {[%emt 0:07:25]} bxc3 {[%emt 0:01:39]} 47. Nxc3 {[%emt 0:00:26]} Rb8 {[%emt 0:00:12]} 48. Rd1+ {[%emt 0:00:22]} Ke7 {[%emt 0:00:10]} 49. Rd6 {[%emt 0:00:11]} Bd7 {[%emt 0:00:54]} 50. Rb6 {[%emt 0:00:14] Against Rb3} Ra8 {[%emt 0:00:47]} 51. Rb7 {[%emt 0:02:51]} Rc8 {[%emt 0:00:32]} (51... Kd8 $11) 52. Bf1 $16 {[%emt 0:00:26]} Bc6 {[%emt 0:00:24]} (52... Kd8 $142) 53. Ra7 {[%emt 0:00:08] And now Ba6 would win.} Kd8 {[%emt 0:00:08]} 54. Bc4 {[%emt 0:00:29]} Rb8 {[%emt 0:00:13]} 55. Ra2 {[%emt 0:00:34]} Rb4 {[%emt 0:00:19]} 56. Kd3 {[%emt 0:00:01]} (56. Bd3 $14) 56... Ke7 {[%emt 0:00:27]} 57. Rf2 {[%emt 0:01:21]} Rb8 {[%emt 0:00:15]} 58. Rf6 {[%emt 0:03:29]} Be8 {[%emt 0:00:57]} 59. Kc2 {[%emt 0:00:20]} Rd8 $1 {[%emt 0:01:19]} 60. Ne2 {[%emt 0:00:16]} Ra8 {[%emt 0:00:22]} 61. Nc1 {[%emt 0:00:55] Black must now prevent Nd3.} Ra4 {[%emt 0:00:29]} (61... Bc6 $11) 62. Kb3 {[%emt 0:00:37] Hoping for Nd3.} Ra1 {[%emt 0:00:36]} 63. Nd3 {[%emt 0:00:40]} Rh1 {[%emt 0:00:28]} 64. Nxe5 {[%emt 0:00:07]} Rxh4 {[%emt 0:00:10]} 65. Nxg6+ {[%emt 0:00:04]} Bxg6 {[%emt 0:00:08]} 66. Rxg6 {[%emt 0:00:01] aiming for Rg7+.} Rxe4 $2 {[%emt 0:00:19][%mdl 12288] Endgame KRB-KRN} (66... Kd7 $16) 67. Rg7+ $18 {[%emt 0:01:13] White is clearly winning.} Kd8 {[%emt 0:00:16]} 68. c6 {[%emt 0:00:40][%cal Bc5c6,Bc6c7][%mdl 32]} h4 {[%emt 0:01:13]} 69. g6 {[%emt 0:00:33][%cal Bg5g6,Bg6g7][%mdl 32] Rf7 is the strong threat.} Rg4 {[%emt 0:00:37]} 70. Rd7+ {[%emt 0:00:08]} Kc8 {[%emt 0:00:05]} 71. Rh7 {[%emt 0:00:02] Rh8+ would kill now.} Kb8 {[%emt 0:00:57]} 72. g7 {[%emt 0:00:47]} Ne8 {[%emt 0:00:32]} 73. c7+ {Weighted Error Value: White=0.26 (precise) /Black=0.29 (precise)} 1-0